bitfinex-derivatives/quotes_ETHF0:USTF0_20260203
["timestamp","ask_amount","ask_price","bid_price","bid_amount"]
[1770098739630,2.38319927,2314.9,2314.1,0.21626]
[1770098739830,7.17193318,2314.8,2314.1,0.21626]
[1770098740032,2.38319927,2314.7,2314.1,0.21626]
[1770098740228,2.38319927,2314.7,2313.9,0.00343061]
[1770098740430,2.38319927,2314.6,2313.9,0.00343061]
[1770098740930,11.04651461,2314.5,2313.6,2.72814767]
[1770098741330,2.38319927,2314.6,2313.6,2.72814767]
[1770098741528,4.56465561,2314.4,2313.6,2.72814767]
[1770098741729,4.56465561,2314.4,2313.6,2.73224096]
[1770098742030,4.56465561,2314.5,2313.6,2.73224096]
[1770098742230,4.56465561,2314.3,2313.6,2.73224096]
[1770098742432,2.38319927,2314.4,2313.6,2.73224096]
[1770098742829,7.37513612,2314.3,2313.6,2.73224096]
[1770098743329,7.37513612,2314.4,2313.6,2.51593096]
[1770098743533,4.65042289,2314.2,2313.6,2.51593096]
[1770098743733,2.38319927,2314.2,2313.6,0.00409329]
[1770098743933,2.38319927,2314.2,2313.3,0.22196456]
[1770098744130,2.38319927,2314.0,2313.3,0.22196456]
[1770098744329,4.302,2313.9,2313.0,2.51183767]
[1770098744529,11.23048462,2313.9,2313.0,2.51183767]
[1770098744936,10.87641709,2313.9,2313.0,2.51519824]
[1770098745827,6.93341709,2313.9,2313.0,2.51519824]
[1770098746031,4.55021782,2313.9,2313.0,2.51519824]
[1770098746832,4.55021782,2313.9,2313.2,2.51183767]
[1770098747236,4.55021782,2313.9,2313.1,2.72819767]
[1770098747529,0.00493247,2313.9,2313.1,2.72819767]
[1770098747725,2.38813174,2313.9,2313.1,2.72819767]
[1770098747930,4.92799,2313.8,2313.1,2.72819767]
[1770098748735,0.00493247,2313.9,2313.1,2.72819767]
[1770098749137,4.82476922,2313.8,2313.1,2.72819767]
[1770098751734,2.33134858,2314.4,2313.3,2.50768452]
[1770098751938,2.33134858,2314.4,2313.4,1.81403225]
[1770098752137,4.53457495,2314.1,2313.4,1.81403225]
[1770098752738,0.00333759,2314.1,2313.6,1.59770225]
[1770098752943,2.33134858,2314.6,2313.6,1.59770225]
[1770098753140,2.33134858,2314.6,2313.7,5.65692347]
[1770098753341,2.535,2314.9,2313.7,5.65692347]
[1770098753342,4.8859094,2314.5,2314.0,0.23233372]
[1770098753638,2.52709298,2314.9,2314.1,0.21627]
[1770098753839,2.53090776,2314.9,2314.1,0.21627]
[1770098754441,2.52709298,2314.7,2314.1,0.21627]
[1770098754836,2.52709298,2314.5,2314.1,0.21627]
[1770098756639,2.53405878,2314.8,2314.2,0.21626]
[1770098758440,2.50258348,2314.9,2314.5,0.21623]
[1770098758640,39.05075914,2316.3,2314.6,0.21621]
[1770098758641,2.4987687,2315.4,2314.6,0.21621]
[1770098759043,2.53512484,2315.2,2314.6,0.21621]
[1770098759242,2.53512484,2315.2,2314.1,8.30588926]
[1770098759443,2.53512484,2315.2,2314.2,0.21626]
[1770098759642,2.53816513,2315.2,2314.3,0.21625]
[1770098760541,2.53512484,2315.8,2315.1,0.21617]
[1770098760749,2.53512484,2315.8,2315.2,0.21616]
[1770098761040,2.53512484,2315.8,2315.3,0.21615]
[1770098761640,2.53831999,2315.8,2315.3,0.21954922]
[1770098764840,0.21601,2316.9,2315.3,0.21954922]
[1770098764841,4.322,2317.2,2315.5,2.29134452]
[1770098765148,4.83734687,2316.3,2315.3,2.56042526]
[1770098765646,4.83734687,2316.7,2315.3,2.56042526]
[1770098765647,11.05897569,2318.9,2315.4,5.50920161]
[1770098765847,2.53831999,2316.9,2315.4,5.50920161]
[1770098766043,4.80896449,2316.3,2315.4,5.50920161]
[1770098766249,4.80896449,2316.6,2315.7,0.21612]
[1770098766542,8.327,2316.8,2315.7,0.21612]
[1770098766749,4.89503385,2316.5,2315.7,0.21612]
[1770098767047,2.33134858,2316.4,2315.7,0.21612]
[1770098768549,2.33134858,2316.6,2315.8,5.49763328]
[1770098768851,2.33134858,2316.6,2315.7,2.29134452]
[1770098769251,2.33134858,2316.6,2315.8,5.65614108]
[1770098769453,2.33134858,2317.0,2316.1,0.21608]
[1770098769952,2.33134858,2316.8,2316.1,0.21608]
[1770098770451,4.86966857,2316.8,2316.1,0.21608]
[1770098770745,2.33630567,2317.1,2316.5,0.21604]
[1770098771151,4.87462566,2317.1,2316.5,0.21604]
[1770098771548,2.33630567,2317.1,2316.5,0.21604]
[1770098771751,0.00495709,2317.1,2316.6,2.50737452]
[1770098772245,0.00495709,2317.1,2316.6,0.21603]
[1770098772649,2.33630567,2317.1,2316.7,0.21602]
[1770098772849,2.53831999,2316.8,2316.1,0.21608]
[1770098773050,2.33134858,2316.5,2315.6,0.21612]
[1770098773552,2.33134858,2316.3,2315.6,0.21612]
[1770098773945,2.33134858,2316.2,2315.6,0.21612]
[1770098774452,2.33630567,2316.2,2315.6,0.21612]
[1770098774647,0.00495709,2316.2,2315.8,0.2161]
[1770098774853,2.33652525,2316.5,2315.8,0.2161]
[1770098775049,4.87462566,2316.4,2315.8,0.2161]
[1770098776155,2.33134858,2316.3,2315.8,0.2161]
[1770098778353,2.33134858,2316.2,2315.8,0.2161]
[1770098779458,2.33134858,2315.8,2315.3,0.00339922]
[1770098779759,2.33134858,2315.6,2314.9,4.85557118]
[1770098780160,2.33630567,2315.6,2315.3,0.21615]
[1770098780355,5.03440804,2315.4,2314.9,2.56422666]
[1770098780555,2.49608805,2315.4,2314.7,4.96566776]
[1770098780756,0.00495709,2315.3,2314.9,0.21619]
[1770098780953,0.00155787,2315.3,2314.9,2.6176311]
[1770098781758,2.533,2316.1,2315.0,8.05609352]
[1770098781957,2.49608805,2316.0,2315.0,8.05609352]
[1770098782158,2.49608805,2315.8,2314.9,2.56422666]
[1770098782658,2.49608805,2315.8,2314.9,4.96566776]
[1770098782859,2.49608805,2316.1,2315.1,2.4014411]
[1770098783058,2.49608805,2316.1,2315.5,0.21613]
[1770098783259,2.49608805,2316.1,2315.6,0.21613]
[1770098783763,2.53831999,2316.0,2315.6,0.21613]
[1770098784161,2.53831999,2315.9,2315.6,0.21613]
[1770098784359,2.49608805,2316.1,2315.7,0.21612]
[1770098784560,2.49608805,2316.4,2315.7,0.21612]
[1770098784761,4.37339798,2316.2,2315.7,0.21612]
[1770098784966,2.49608805,2316.1,2315.7,0.21612]
[1770098785162,4.37339798,2316.1,2315.7,0.21612]
[1770098785368,1.87730993,2316.0,2315.7,0.21612]
[1770098785769,1.87730993,2315.9,2315.7,0.21612]
[1770098785964,2.49608805,2316.1,2315.7,0.21612]
[1770098785965,1.87730993,2316.0,2315.7,0.21612]
[1770098786268,4.37339798,2316.2,2315.7,0.21612]
[1770098786664,1.87730993,2316.1,2315.7,0.21612]
[1770098787064,1.87730993,2316.0,2315.7,0.21612]
[1770098787261,4.37339798,2316.0,2315.7,0.21612]
[1770098787769,1.87730993,2315.9,2315.7,0.21612]
[1770098788163,1.87730993,2315.9,2315.7,2.78034666]
[1770098789262,2.49608805,2316.2,2315.8,2.78032666]
[1770098789463,1.44451993,2316.0,2315.9,2.56422666]
[1770098791269,2.50126472,2316.5,2315.9,2.56422666]
[1770098791470,2.50126472,2316.5,2315.9,2.78032666]
[1770098792472,2.50126472,2316.5,2316.0,2.56422666]
[1770098792671,2.50126472,2316.5,2315.9,2.78032666]
[1770098792874,2.50126472,2316.5,2316.0,2.56422666]
[1770098793373,2.50126472,2316.5,2315.8,1.53405081]
[1770098793571,2.49608805,2316.3,2315.8,1.53405081]
[1770098793873,4.49216371,2316.2,2315.0,16.66401733]
[1770098794074,4.49216371,2316.2,2315.0,8.96447743]
[1770098794275,4.49216371,2316.2,2315.1,2.53223264]
[1770098794471,2.533,2316.1,2315.1,5.61452515]
[1770098794671,2.533,2316.1,2314.8,0.2162]
[1770098794672,4.319,2316.0,2314.8,0.2162]
[1770098794874,8.86167381,2316.0,2314.8,0.2162]
[1770098795074,0.04355504,2315.8,2314.8,0.2162]
[1770098795473,0.04355504,2315.6,2314.8,0.2162]
[1770098795969,43.02497054,2316.0,2314.7,0.00478987]
[1770098795970,4.57021645,2315.5,2314.9,2.72664512]
[1770098796170,0.04355504,2315.7,2314.9,2.72664512]
[1770098796570,4.99892985,2315.6,2314.9,0.21619]
[1770098796877,0.04355504,2315.6,2314.9,0.21619]
[1770098798075,8.73,2315.9,2314.9,2.74842264]
[1770098798471,4.70062591,2315.8,2314.9,2.74842264]
[1770098798669,4.70062591,2315.8,2314.9,0.21619]
[1770098803778,4.70062591,2315.8,2314.7,0.00478987]
[1770098803978,0.21613,2315.7,2314.3,0.21624]
[1770098804281,0.21613,2315.7,2314.1,2.53223264]
[1770098804282,0.21614,2315.5,2313.8,2.74852264]
[1770098804680,4.60256144,2315.4,2313.8,2.74852264]
[1770098804879,4.60256144,2315.4,2314.1,2.53223264]
[1770098805077,11.13956144,2315.4,2314.2,2.74849264]
[1770098805478,8.737,2315.3,2314.5,2.74846264]
[1770098805685,13.48407259,2315.3,2314.5,2.74846264]
[1770098805984,4.74707259,2315.7,2314.6,2.74845264]
[1770098806284,4.74707259,2315.4,2314.6,2.74845264]
[1770098806682,8.738,2315.9,2314.6,2.74845264]
[1770098806885,4.63823235,2315.3,2314.6,2.74845264]
[1770098807288,4.435,2315.5,2314.6,2.74845264]
[1770098807582,4.89643335,2315.4,2314.6,0.21622]
[1770098808087,4.89643335,2315.4,2314.1,0.00470134]
[1770098808580,5.11258335,2315.4,2314.1,0.00470134]
[1770098808786,0.21616,2315.3,2314.1,0.00470134]
[1770098809180,45.67613432,2315.2,2314.1,0.00470134]
[1770098809575,0.21619,2315.0,2313.4,2.53223264]
[1770098809984,4.77397666,2314.9,2313.4,2.53223264]
[1770098810180,8.587,2314.8,2313.4,2.53223264]
[1770098810377,4.321,2314.7,2313.4,2.53223264]
[1770098810580,9.17291762,2314.7,2313.4,2.53686842]
[1770098815087,9.17291762,2314.7,2313.4,0.00463578]
[1770098816787,9.17291762,2314.7,2313.4,2.53924895]
[1770098816989,9.17391762,2314.7,2313.6,2.53461317]
[1770098817289,6.628,2314.6,2313.6,2.53461317]
[1770098817689,4.84574271,2314.5,2313.6,2.75092317]
[1770098818685,4.84574271,2314.5,2313.6,2.53461317]
[1770098818988,0.0055036,2314.7,2313.9,2.75089317]
[1770098819190,0.21615,2315.4,2313.9,2.75089317]
[1770098819388,13.056,2315.3,2313.9,2.75089317]
[1770098819588,4.76422566,2315.0,2313.9,2.75089317]
[1770098819788,58.62022566,2315.3,2313.9,2.75089317]
[1770098819989,4.76422566,2315.2,2313.9,2.75089317]
[1770098820293,4.76422566,2315.0,2313.9,0.21628]
[1770098820492,0.21618,2315.0,2313.4,2.53924895]
[1770098820890,0.21622,2314.7,2313.4,0.00463578]
[1770098821093,0.21622,2314.6,2313.4,0.00463578]
[1770098821291,2.535,2314.5,2313.4,0.00463578]
[1770098821686,4.51353082,2314.4,2313.4,0.00463578]
[1770098821890,4.322,2314.3,2313.4,0.00463578]
[1770098822188,4.51353082,2314.2,2313.4,0.00463578]
[1770098822389,4.51353082,2314.2,2312.9,2.75099317]
[1770098822687,2.55045492,2313.8,2311.9,2.53461317]
[1770098822890,2.55045492,2313.8,2312.2,2.53461317]
[1770098823089,4.96737317,2313.7,2312.8,2.53461317]
[1770098823292,4.96737317,2313.7,2312.8,2.75099317]
[1770098823492,4.96737317,2313.8,2312.8,0.22019649]
[1770098823789,2.55045492,2314.2,2312.8,0.22019649]
[1770098824092,4.68372681,2313.8,2312.8,0.00381649]
[1770098824295,2.55045492,2314.0,2312.8,0.00381649]
[1770098824588,2.55045492,2314.0,2312.2,0.21644]
[1770098824589,2.55045492,2313.7,2312.2,0.21644]
[1770098824793,2.55045492,2313.6,2312.2,0.21644]
[1770098824992,7.22369946,2313.6,2312.2,0.21644]
[1770098825194,40.8,2313.5,2312.2,2.75105317]
[1770098825489,17.78085705,2313.4,2312.2,2.75414417]
[1770098825693,8.779,2313.3,2312.2,2.75414417]
[1770098826094,4.68285705,2313.2,2312.4,2.75103317]
[1770098826491,4.68285705,2313.3,2312.4,2.75103317]
[1770098826688,2.535,2313.4,2312.4,2.75103317]
[1770098827090,4.74302168,2313.2,2312.4,2.75103317]
[1770098827291,4.74302168,2313.3,2312.4,2.75103317]
[1770098827492,2.535,2313.4,2312.4,2.75103317]
[1770098827793,4.74074854,2313.3,2312.4,2.75103317]
[1770098828894,8.87135923,2313.4,2312.4,2.75103317]
[1770098829094,3.874,2313.4,2312.4,2.75103317]
[1770098829294,0.00500589,2313.5,2312.4,2.75103317]
[1770098829499,9.17935923,2313.3,2312.4,2.75103317]
[1770098829794,4.182,2313.3,2312.4,2.75103317]
[1770098829995,5.00757471,2313.2,2312.4,2.75103317]
[1770098830599,0.00500589,2313.5,2312.9,2.53461317]
[1770098830897,2.37235889,2314.0,2312.9,2.75098317]
[1770098831092,2.37235889,2313.3,2312.3,5.66041533]
[1770098831292,2.37235889,2313.1,2312.2,0.003091]
[1770098831501,2.37235889,2313.0,2312.2,0.003091]
[1770098831695,2.37235889,2312.8,2312.2,0.003091]
[1770098832094,2.37235889,2312.6,2312.2,0.003091]
[1770098832296,2.37235889,2312.6,2311.8,2.53019997]
[1770098833493,2.37235889,2312.6,2311.8,2.53505001]
[1770098833993,2.37235889,2312.2,2311.4,0.21652]
[1770098834397,4.87656111,2312.1,2311.4,0.21652]
[1770098834695,4.87656111,2312.1,2311.4,2.53023997]
[1770098834898,2.37235889,2312.0,2309.5,4.321]
[1770098835110,5.37429376,2309.6,2306.2,14.96900323]
[1770098835289,14.69151018,2306.7,2306.3,21.6528]
[1770098835490,11.05897569,2306.5,2305.5,2.53461317]
[1770098835699,9.23674228,2306.0,2305.6,63.7365627]
[1770098836002,9.23674228,2305.8,2304.7,0.07547505]
[1770098836192,7.68630941,2305.7,2304.5,72.40706249]
[1770098836395,1.18925906,2306.0,2304.6,21.76669175]
[1770098836596,4.61389347,2305.6,2304.6,0.07549175]
[1770098836798,12.76035656,2305.5,2304.7,72.40866249]
[1770098837098,4.61389347,2305.4,2304.7,17.63290631]
[1770098837396,7.44966536,2305.2,2304.8,83.0853483]
[1770098837596,0.00532337,2306.0,2305.3,21.6912]
[1770098837798,0.00532337,2306.0,2304.9,2.31371997]
[1770098838000,4.88205345,2305.9,2304.9,2.31371997]
[1770098838192,2.48347095,2305.3,2305.0,8.18957857]
[1770098838501,9.84899535,2305.2,2303.5,2.53461317]
[1770098838797,2.4710383,2304.3,2303.6,2.53461317]
[1770098839006,2.4710383,2304.2,2303.6,6.8882265]
[1770098839294,4.50439149,2304.4,2303.8,2.53461317]
[1770098839500,0.0034947,2304.4,2303.9,6.8882265]
[1770098839695,0.0034947,2304.4,2303.9,10.58350878]
[1770098839896,0.06622882,2304.3,2304.0,43.58835808]
[1770098840100,0.06622882,2304.3,2304.0,33.0048493]
[1770098840299,49.752,2304.9,2304.0,1.27563456]
[1770098840603,4.83257381,2304.2,2303.4,0.22196456]
[1770098840804,4.83257381,2304.3,2303.5,0.14494982]
[1770098841003,2.45946232,2304.6,2303.5,0.14494982]
[1770098841199,4.83257381,2304.2,2303.5,0.14494982]
[1770098841395,0.00502451,2304.2,2303.5,0.15001639]
[1770098841894,4.92831921,2304.1,2303.5,0.15001639]
[1770098842095,0.00502451,2304.2,2303.5,0.15001639]
[1770098842294,40.8,2305.2,2303.7,2.32189506]
[1770098842696,2.37051387,2304.8,2303.8,5.81314496]
[1770098842903,2.37051387,2304.8,2303.8,0.13992531]
[1770098843097,4.69863071,2304.7,2303.8,0.13992531]
[1770098843304,4.70186033,2304.7,2303.8,2.46182037]
[1770098843697,0.00322962,2304.7,2304.0,2.32189506]
[1770098843900,2.28090844,2306.6,2304.4,2.32189506]
[1770098844194,4.74880016,2306.4,2304.6,2.32189506]
[1770098844396,2.28090844,2306.3,2304.8,2.32189506]
[1770098844595,2.28090844,2306.8,2304.8,2.32189506]
[1770098844799,0.13000342,2306.2,2305.0,2.32189506]
[1770098845001,7.34459989,2306.3,2305.0,2.32189506]
[1770098845202,2.45575487,2306.2,2305.0,2.32189506]
[1770098845402,7.34459989,2306.2,2305.0,2.32189506]
[1770098845703,4.88884502,2306.3,2305.0,2.32189506]
[1770098845899,2.45575487,2306.5,2305.0,2.32189506]
[1770098846105,7.03293225,2306.1,2305.0,2.32189506]
[1770098846402,2.45575487,2306.5,2305.0,2.32189506]
[1770098846602,4.57717738,2306.0,2305.0,2.32189506]
[1770098846906,4.5547487,2306.3,2305.0,2.32189506]
[1770098847106,2.45575487,2306.5,2305.2,2.32189506]
[1770098847404,4.5547487,2306.2,2305.2,2.32555245]
[1770098847605,4.5547487,2306.3,2305.2,2.32555245]
[1770098847800,4.96936958,2306.7,2305.4,2.32189506]
[1770098848006,0.0039061,2306.8,2305.6,2.32189506]
[1770098848205,0.0039061,2306.8,2305.8,2.32189506]
[1770098848403,4.96936958,2306.7,2305.8,2.32189506]
[1770098850102,0.0039061,2306.8,2305.8,2.32189506]
[1770098850505,2.45946232,2306.6,2305.2,2.32555245]
[1770098850710,2.45946232,2306.4,2305.2,2.32555245]
[1770098850913,6.51058894,2306.3,2305.2,2.32555245]
[1770098851109,13.53666429,2306.3,2305.2,2.32555245]
[1770098851413,2.45946232,2306.2,2305.2,2.32555245]
[1770098851616,4.56661303,2306.3,2305.2,2.32555245]
[1770098851811,4.93050062,2306.6,2305.2,2.32555245]
[1770098852011,4.71177692,2306.4,2305.2,2.32555245]
[1770098852313,6.51042107,2306.3,2305.2,2.32555245]
[1770098852515,4.71177692,2306.3,2305.2,2.32555245]
[1770098852815,4.82327164,2306.4,2305.2,2.32555245]
[1770098853113,2.4749444,2306.8,2305.4,2.32189506]
[1770098853409,4.82327164,2306.3,2305.4,2.32189506]
[1770098853815,4.93050062,2306.6,2305.4,2.32189506]
[1770098854018,4.70693532,2306.3,2305.4,2.32189506]
[1770098854213,2.4710383,2306.0,2305.2,0.00365739]
[1770098854419,6.51102765,2305.9,2305.2,0.00365739]
[1770098854619,6.51102765,2305.8,2305.2,0.00365739]
[1770098854816,2.45946232,2305.7,2304.4,4.336]
[1770098855021,0.98712079,2302.4,2298.6,3.4654698]
[1770098855226,1.01638089,2301.2,2298.6,3.4654698]
[1770098855423,36.60346829,2301.9,2298.5,0.29743618]
[1770098855424,1.01638089,2300.7,2298.7,5.95305713]
[1770098855623,1.01638089,2300.2,2298.7,0.29743618]
[1770098855820,1.01638089,2300.1,2298.7,0.30103722]
[1770098856030,1.01638089,2299.8,2296.9,3.4654698]
[1770098856326,11.53423288,2299.7,2297.4,3.4654698]
[1770098856522,5.02320523,2299.7,2297.5,6.882]
[1770098856723,0.00432839,2300.2,2297.5,6.882]
[1770098856724,4.84149778,2299.8,2297.9,3.4654698]
[1770098856920,4.84149778,2300.1,2298.5,2.32189506]
[1770098857124,4.84149778,2300.1,2298.5,2.54818219]
[1770098857327,4.84149778,2299.9,2299.0,2.32189506]
[1770098857526,0.00432839,2300.2,2299.0,2.32189506]
[1770098857527,4.84149778,2300.1,2299.0,2.32189506]
[1770098857731,0.00432839,2300.2,2299.3,2.32189506]
[1770098858026,4.77392272,2300.1,2299.3,2.32189506]
[1770098858228,4.77392272,2300.1,2298.8,2.32189506]
[1770098859231,6.52845553,2300.0,2298.8,2.32189506]
[1770098859430,0.69212134,2299.8,2298.5,0.00432257]
[1770098859630,6.52879928,2299.7,2298.5,2.32621763]
[1770098859832,11.22831295,2299.7,2298.5,2.32621763]
[1770098860033,4.69951367,2299.7,2298.5,2.32621763]
[1770098860527,7.22149189,2299.6,2298.5,0.00432257]
[1770098860733,4.69951367,2299.7,2298.5,2.32621763]
[1770098860927,4.87622305,2299.5,2298.5,2.32621763]
[1770098861130,5.43504496,2300.0,2298.7,2.32189506]
[1770098861330,0.73553129,2299.8,2298.5,2.32621763]
[1770098861529,4.87622305,2299.4,2298.5,2.32621763]
[1770098861737,0.73553129,2299.8,2298.5,2.32621763]
[1770098861931,6.52857464,2299.7,2298.5,2.32621763]
[1770098862235,6.52900324,2299.6,2298.5,2.32621763]
[1770098862431,6.99385851,2299.8,2298.5,2.32621763]
[1770098862632,4.55756264,2299.5,2298.5,2.32621763]
[1770098862837,4.59660883,2299.6,2298.5,2.32621763]
[1770098863130,2.43957107,2299.8,2298.5,2.32621763]
[1770098863338,4.59660883,2299.5,2298.5,2.32621763]
[1770098863632,6.52877728,2299.4,2298.5,2.32621763]
[1770098863937,11.16812735,2299.3,2298.5,2.32621763]
[1770098864136,4.63932406,2299.3,2298.5,2.32621763]
[1770098864332,6.52827922,2299.2,2298.5,2.32621763]
[1770098864634,2.43957107,2299.4,2298.5,2.32621763]
[1770098864835,6.52873276,2299.3,2298.5,2.32621763]
[1770098865035,6.52873276,2299.2,2298.5,2.32621763]
[1770098865237,2.43957107,2299.4,2298.5,2.32621763]
[1770098865436,6.52875752,2299.3,2298.5,2.32621763]
[1770098865638,6.52875752,2299.2,2298.5,2.32621763]
[1770098865839,7.4048324,2299.5,2298.5,2.32621763]
[1770098866029,6.52874439,2299.4,2298.5,2.32621763]
[1770098866335,4.96526133,2299.4,2298.5,2.32621763]
[1770098866639,2.43957107,2299.8,2298.5,2.32621763]
[1770098866837,6.52807719,2299.7,2298.5,2.32621763]
[1770098867136,8.4e-07,2299.7,2298.6,8.48831381]
[1770098867337,3.49664088,2299.8,2299.3,0.21766]
[1770098867638,0.00432839,2300.2,2299.4,10.26357864]
[1770098867938,0.00432839,2300.2,2299.5,0.21764]
[1770098868435,0.00432839,2300.2,2299.5,5.81825291]
[1770098868636,0.00432839,2300.2,2299.6,0.21763]
[1770098869234,0.00432839,2300.2,2299.7,5.57463854]
[1770098869639,2.5419002,2300.5,2299.7,5.57463854]
[1770098869932,2.5419002,2300.9,2299.7,5.57463854]
[1770098870140,2.5419105,2300.3,2299.1,0.21767]
[1770098870535,2.5419105,2300.1,2299.1,0.21767]
[1770098870836,2.54532841,2300.1,2299.3,0.21766]
[1770098871036,2.54532841,2300.1,2299.2,5.76194288]
[1770098871236,2.54532841,2300.1,2299.1,5.97961288]
[1770098871437,2.54532841,2300.1,2299.1,0.21767]
[1770098871639,2.54532841,2300.1,2299.3,5.56756854]
[1770098871835,0.00341791,2300.1,2299.2,5.56756854]
[1770098872136,2.5419105,2300.8,2299.8,0.21761]
[1770098872332,2.5419105,2300.8,2299.9,0.2176]
[1770098872533,7.14782733,2300.7,2299.9,5.81035379]
[1770098872734,2.5419105,2301.0,2300.0,0.21759]
[1770098873133,4.97395656,2300.9,2300.1,5.59275379]
[1770098873439,2.54640873,2301.0,2300.1,5.59275379]
[1770098874439,2.54640873,2301.0,2300.1,5.81033379]
[1770098874635,2.5419105,2301.5,2300.4,0.21755]
[1770098875034,2.5419105,2301.5,2300.5,5.57811333]
[1770098875439,7.24689077,2301.4,2300.5,5.57811333]
[1770098875643,7.25049929,2301.4,2300.5,5.58369749]
[1770098875838,2.54551902,2301.4,2300.5,5.58369749]
[1770098876638,2.54551902,2301.4,2300.6,0.21753]
[1770098876841,0.00360852,2301.4,2300.6,0.21753]
[1770098877041,0.00360852,2301.4,2300.7,5.75205567]
[1770098877536,2.43957107,2301.8,2300.8,4.56452]
[1770098877741,2.52502606,2301.8,2300.8,4.56452]
[1770098877942,2.52502606,2301.7,2300.9,5.73119996]
[1770098878147,9.63716206,2301.7,2300.9,5.73119996]
[1770098878438,2.44470332,2301.7,2300.9,5.94870996]
[1770098878643,0.00513225,2301.7,2300.9,5.94870996]
[1770098879147,6.52172052,2301.6,2300.9,5.94870996]
[1770098879344,6.52172052,2301.5,2300.9,5.94870996]
[1770098879642,2.44470332,2301.7,2300.9,5.94870996]
[1770098879844,6.52180791,2301.6,2301.0,0.2175]
[1770098880144,0.00513225,2301.7,2301.1,5.76000458]
[1770098880343,9.0576071,2301.6,2301.1,5.76000458]
[1770098880545,2.53598878,2301.4,2301.1,5.76000458]
[1770098880741,10.38222966,2301.4,2300.8,4.347]
[1770098880945,2.53598878,2301.2,2300.8,3.125]
[1770098881239,14.35519698,2301.3,2300.6,4.104]
[1770098881240,1.99044107,2300.9,2300.6,4.104]
[1770098881542,36.60346829,2301.6,2300.9,5.69884191]
[1770098881845,2.54191049,2301.4,2300.7,5.69884191]
[1770098882047,10.38815137,2301.4,2300.8,0.21751]
[1770098882250,2.54191049,2301.2,2300.8,5.69884191]
[1770098882442,10.38815137,2300.9,2300.6,4.104]
[1770098882944,2.54191049,2301.4,2300.6,4.104]
[1770098883141,2.5419105,2301.3,2300.6,4.104]
[1770098883342,36.60346829,2301.2,2300.6,4.104]
[1770098883648,36.60346829,2301.2,2300.2,4.347]
[1770098883649,2.5419105,2300.9,2300.2,4.347]
[1770098883839,36.60346829,2301.0,2300.2,4.347]
[1770098884040,42.78308917,2301.0,2300.3,5.58483913]
[1770098884243,36.15896413,2300.6,2300.3,5.58483913]
[1770098884545,4.88046243,2301.0,2300.3,5.58818182]
[1770098885547,2.5419105,2301.2,2300.3,5.58818182]
[1770098885745,4.88046243,2301.3,2300.4,0.03487011]
[1770098885945,2.52447544,2301.2,2300.3,5.80574182]
[1770098886149,2.52447544,2301.2,2300.5,5.54417626]
[1770098886453,8.70409632,2301.2,2300.4,5.72516848]
[1770098886646,8.70409632,2301.2,2300.3,8.66490269]
[1770098886846,8.70409632,2301.2,2300.4,5.72516848]
[1770098887050,2.52447544,2301.2,2300.4,5.72516848]
[1770098887350,6.17962088,2300.9,2300.4,5.72516848]
[1770098887549,2.5419105,2301.0,2300.4,5.72516848]
[1770098887742,8.72153138,2300.8,2300.4,5.72516848]
[1770098887946,2.5419105,2301.2,2300.4,5.72516848]
[1770098888146,2.5419105,2301.2,2300.5,0.21754]
[1770098888346,6.17962088,2301.1,2300.5,0.21754]
[1770098888746,2.5419105,2301.2,2300.6,5.59424164]
[1770098888946,2.54704275,2301.7,2300.7,0.21753]
[1770098889151,8.15519507,2301.6,2300.7,0.21753]
[1770098889352,5.61328458,2301.5,2300.8,5.69299688]
[1770098889747,2.54191049,2301.6,2300.8,5.69299688]
[1770098889748,5.61328458,2301.4,2300.8,5.69299688]
[1770098890145,5.61328458,2301.3,2300.8,5.69299688]
[1770098890348,5.61328458,2301.4,2300.8,5.69299688]
[1770098890848,5.61328458,2301.3,2300.8,5.69299688]
[1770098891054,0.00513225,2301.7,2301.1,0.21749]
[1770098891252,2.53243077,2301.5,2301.1,0.21749]
[1770098891553,7.66348293,2301.3,2300.6,0.21753]
[1770098891753,2.53243077,2301.3,2300.6,0.21753]
[1770098891957,2.53243077,2301.3,2300.6,5.94235803]
[1770098892155,2.53243077,2301.0,2300.6,5.94235803]
[1770098892649,4.63150272,2300.9,2300.6,5.72482803]
[1770098892953,2.53243077,2301.4,2300.8,0.21751]
[1770098893453,0.00513225,2301.7,2300.8,0.21751]
[1770098893454,7.15789539,2301.1,2300.8,0.21751]
[1770098893653,0.00513225,2301.7,2300.8,0.21751]
[1770098893654,2.52639267,2301.4,2300.8,0.21751]
[1770098893853,7.15789539,2301.2,2300.9,0.2175]
[1770098894048,2.52639267,2301.2,2300.9,0.2175]
[1770098894251,2.52639267,2301.2,2301.0,0.2175]
[1770098894650,1.93576267,2301.1,2301.0,0.2175]
[1770098894854,2.55402272,2301.2,2301.0,0.2175]
[1770098895048,2.55402272,2301.2,2300.5,5.68699392]
[1770098895049,0.00513225,2301.7,2301.1,0.21749]
[1770098895248,1.53695272,2301.3,2301.1,0.21749]
[1770098895557,1.53695272,2301.2,2301.1,0.21749]
[1770098895757,1.07245272,2301.2,2301.1,0.21749]
[1770098895955,0.15737272,2301.2,2301.1,0.21749]
[1770098896257,0.00513225,2301.7,2301.1,0.21749]
[1770098896453,0.00513225,2301.7,2301.2,0.21748]
[1770098896754,0.00513225,2301.7,2300.5,5.68699392]
[1770098896755,2.50982955,2301.5,2300.5,6.30925155]
[1770098896955,2.50982955,2301.5,2301.1,0.21749]
[1770098897156,2.07417955,2301.3,2301.1,0.21749]
[1770098897464,2.07417955,2301.3,2300.5,5.68699392]
[1770098897465,0.00513225,2301.7,2301.2,0.21748]
[1770098897661,0.00513225,2301.7,2301.3,0.21747]
[1770098897950,0.00513225,2301.7,2301.4,0.21746]
[1770098898155,6.10057804,2302.5,2301.4,0.21746]
[1770098898554,4.87911747,2302.1,2301.4,0.21746]
[1770098898948,4.60466719,2302.4,2301.4,0.21746]
[1770098899154,2.50982955,2302.3,2301.4,0.21746]
[1770098899651,2.50982955,2302.1,2301.4,0.21746]
[1770098899857,2.50982955,2302.1,2301.5,5.63758981]
[1770098900350,2.51257672,2302.5,2302.1,0.21738]
[1770098900551,6.10057804,2303.1,2302.1,0.21738]
[1770098900754,4.87998208,2302.4,2301.4,5.40522271]
[1770098900949,40.8,2303.2,2301.4,4.347]
[1770098900950,4.7202213,2302.9,2301.4,4.347]
[1770098901157,6.10057804,2303.0,2301.5,5.59087395]
[1770098901558,4.7202213,2302.8,2301.5,5.59432155]
[1770098901854,6.10454595,2303.0,2301.5,5.59432155]
[1770098902258,4.67980076,2302.7,2301.8,0.21742]
[1770098902557,2.50872386,2302.7,2301.8,0.21742]
[1770098902757,2.50872386,2302.5,2301.8,0.21742]
[1770098903160,2.50872386,2302.3,2301.8,0.21742]
[1770098903355,3.74318081,2302.4,2302.1,0.21739]
[1770098903562,2.50872386,2302.6,2302.1,0.21739]